fUSD/lending_fUSD_20240929
["ID","MTS","AMOUNT","RATE_DAILY","PERIOD"]
[339403291,1727572239643,-837.74750378,0.00011,2]
[339403292,1727572239671,-1796.9531799,0.00011,2]
[339403293,1727572239683,-727.40483639,0.00011,2]
[339403294,1727572239695,-19004.07780853,0.00011,2]
[339403295,1727572239752,-807.73443717,0.00011,2]
[339403296,1727572239816,-388.84079652,0.00011,2]
[339403297,1727572239828,-2658.3,0.00011,2]
[339403298,1727572239840,-3265.7901458,0.00011,2]
[339403299,1727572239851,-2612.31486819,0.00011,2]
[339403300,1727572239862,-1244.6844767,0.00011,2]
[339403301,1727572239874,-1939.18905023,0.00011,2]
[339403302,1727572239887,-1505.85661744,0.00011,2]
[339403303,1727572239900,-5154.21964599,0.00011,2]
[339403304,1727572239913,-1840.0,0.00011,2]
[339403340,1727572242377,-1201.87353666,0.00011,2]
[339403341,1727572242389,-39694.74607981,0.00011,2]
[339403342,1727572242400,-5983.9,0.00011,2]
[339403343,1727572242455,-709.02324261,0.00011,2]
[339403344,1727572242467,-6855.90067227,0.00011,2]
[339403345,1727572242479,-5242.74940921,0.00011,2]
[339403346,1727572242491,-34105.91719769,0.00011,2]
[339403347,1727572242501,-570.65898583,0.00011,2]
[339403348,1727572242513,-1232.8790104,0.00011,2]
[339403349,1727572242523,-6654.157102,0.00011,2]
[339403350,1727572242534,-19357.48479724,0.00011,2]
[339403351,1727572242544,-258.39,0.00011,2]
[339403352,1727572242555,-1071.21456169,0.00011,2]
[339403353,1727572242567,-2939.32172658,0.00011,2]
[339403354,1727572242578,-4491.72001492,0.00011,2]
[339403355,1727572242590,-361.01292754,0.00011,2]
[339403356,1727572242602,-370.19267968,0.00011,2]
[339403357,1727572242614,-1062.2389895,0.00011,2]
[339403358,1727572242626,-567.65895679,0.00011,2]
[339403359,1727572242784,-5975.94569731,0.00011,2]
[339403360,1727572242795,-2627.76022133,0.00011,2]
[339403361,1727572242806,-683.45982075,0.00011,2]
[339403362,1727572242817,-330.5,0.00011,2]
[339403363,1727572242828,-379.83382734,0.00011,2]
[339403364,1727572242839,-1325.20799028,0.00011,2]
[339403365,1727572242850,-8457.3627112,0.00011,2]
[339403366,1727572242861,-21986.27470492,0.00011,2]
[339403367,1727572242871,-10877.31968114,0.00011,2]
[339403368,1727572242882,-532.35328105,0.00011,2]
[339403369,1727572242897,-27224.64936145,0.00011,2]
[339403370,1727572242908,-1058.55765,0.00011,2]
[339403373,1727572245365,-500.0,0.00011,2]
[339403374,1727572245378,-861.90180945,0.00011,2]
[339403375,1727572245389,-1303.17693193,0.00011,2]
[339403376,1727572245400,-23938.32502418,0.00011,2]
[339403377,1727572245410,-503.23730466,0.00011,2]
[339403378,1727572245462,-6676.43119304,0.00011,2]
[339403379,1727572245474,-746.51666972,0.00011,2]
[339403380,1727572245484,-1427.89716611,0.00011,2]
[339403381,1727572245496,-53614.89159049,0.00011,2]
[339403382,1727572245508,-12979.47777581,0.00011,2]
[339403383,1727572245520,-4855.72544485,0.00011,2]
[339403384,1727572245532,-1010.28983316,0.00011,2]
[339403385,1727572245544,-324.95834368,0.00011,2]
[339403386,1727572245556,-371.08009368,0.00011,2]
[339403387,1727572245568,-446808.44669664,0.00011,2]
[339403388,1727572245581,-2850.29119043,0.00011,2]
[339403389,1727572245592,-1644.15644672,0.00011,2]
[339403390,1727572245605,-602.0,0.00011,2]
[339403391,1727572245625,-747.40697802,0.00011,2]
[339403392,1727572245636,-505.14,0.00011,2]
[339403393,1727572245647,-292.064,0.00011,2]
[339403394,1727572245659,-1046.63815051,0.00011,2]
[339403395,1727572245670,-6653.2513662,0.00011,2]
[339403396,1727572245681,-8901.18086874,0.00011,2]
[339403397,1727572245692,-1865.90015416,0.00011,2]
[339403398,1727572245703,-2457.38273895,0.00011,2]
[339403399,1727572245714,-1434.79165165,0.00011,2]
[339403400,1727572245725,-569.62893995,0.00011,2]
[339403401,1727572245740,-3194.03000004,0.00011,2]
[339403402,1727572245752,-2630.82659408,0.00011,2]
[339403403,1727572245765,-22334.93310861,0.00011,2]
[339403404,1727572245776,-6356.51117519,0.00011,2]
[339403405,1727572245788,-2087.08,0.00011,2]
[339403406,1727572245799,-1289.65510797,0.00011,2]
[339403407,1727572245810,-4280.54195279,0.00011,2]
[339403408,1727572245821,-520.42458624,0.00011,2]
[339403409,1727572245833,-1499.90008,0.00011,2]
[339403410,1727572245844,-493.09011844,0.00011,2]
[339403411,1727572245855,-5285.28,0.00011,2]
[339403412,1727572245867,-4784.87292376,0.00011,2]
[339403413,1727572245878,-2049.27708235,0.00011,2]
[339403414,1727572245889,-3187.19048631,0.00011,2]
[339403415,1727572245900,-984.31139991,0.00011,2]
[339403416,1727572245911,-2238.27476078,0.00011,2]
[339403417,1727572245927,-404.56965227,0.00011,2]
[339403418,1727572245939,-478.59999999,0.00011,2]
[339403438,1727572331909,598.0,0.00022,120]
[339403441,1727572537571,5000.0,0.00021,60]
[339403442,1727572692657,1067.0,0.00022,120]
[339403443,1727572704025,575.0,0.00022,120]
[339403444,1727572730990,152.82735261,9.432e-05,2]
[339403445,1727572731013,152.82735261,9.432e-05,2]
[339403446,1727572731035,152.82735261,9.432e-05,2]
[339403447,1727572731056,24.35794217,9.432e-05,2]
[339403448,1727572733551,-282.69774291,0.00010736,2]
[339403449,1727572734309,-150.0,0.00010736,2]
[339403450,1727572734825,-150.0,0.00010736,2]
[339403451,1727572735293,-150.0,0.00010736,2]
[339403452,1727572735769,-150.0,0.00010736,2]
[339403453,1727572736397,-150.0,0.0001068,2]
[339403454,1727572736808,-150.0,0.0001068,2]
[339403455,1727572737392,-150.0,0.0001068,2]
[339403456,1727572738100,-150.0,0.0001068,2]
[339403457,1727572739559,-150.0,0.0001068,2]
[339403458,1727572740398,-150.0,0.0001068,2]
[339403459,1727572740939,-150.0,0.0001068,2]
[339403460,1727572742670,-150.0,0.0001068,2]
[339403461,1727572743230,-150.0,0.00010467,2]
[339403462,1727572743766,-150.0,0.00010467,2]
[339403463,1727572744169,-150.0,0.00010467,2]
[339403465,1727572785670,-150.0,0.00010431,2]
[339403466,1727572786265,-150.0,0.00010431,2]
[339403467,1727572786677,-150.0,0.00010431,2]
[339403468,1727572787165,-150.0,0.00010431,2]
[339403469,1727572787958,-150.0,0.00010404,2]
[339403470,1727572788477,-150.0,0.00010404,2]
[339403471,1727572789275,-150.0,0.00010404,2]
[339403472,1727572789867,-150.0,0.00010404,2]
[339403473,1727572790282,-251.73,0.00010404,2]
[339403474,1727572791272,-248.92097421,0.00010404,2]
[339403475,1727572842695,-176.51462037,0.00010331,2]
[339403476,1727572844158,-106.67902579,0.00010404,2]
[339403477,1727572844178,-118.27948632,0.00010404,2]
[339403478,1727572844698,-250.0,0.00010404,2]
[339403479,1727572845069,-241.27,0.00010404,2]
[339403480,1727572845587,-194.12,0.00010404,2]
[339403481,1727572846361,-182.23,0.00010404,2]
[339403482,1727572904501,163.34,0.00013918,30]
[339403483,1727573070975,552.0,0.00022,120]
[339403484,1727573114294,150.0,9.888e-05,2]
[339403485,1727573114315,1.62886511,9.888e-05,2]
[339403486,1727573144769,150.0,0.00010094,2]
[339403487,1727573144794,2141.80902579,0.00010094,2]
[339403488,1727573144999,-150.0,0.00010094,2]
[339403489,1727573145060,-150.0,0.00010094,2]
[339403490,1727573145169,-150.0,0.00010094,2]
[339403491,1727573145214,-150.0,0.00010094,2]
[339403492,1727573145275,-150.0,0.00010094,2]
[339403493,1727573145321,-150.0,0.00010094,2]
[339403494,1727573145364,-150.0,0.00010094,2]
[339403495,1727573145405,-150.0,0.00010094,2]
[339403496,1727573145448,-150.0,0.00010094,2]
[339403497,1727573145676,-150.0,0.00010094,2]
[339403498,1727573145703,-150.0,0.00010094,2]
[339403499,1727573145727,-150.0,0.00010094,2]
[339403500,1727573145752,-150.0,0.00010094,2]
[339403501,1727573145780,-150.0,0.00010094,2]
[339403502,1727573145804,-150.0,0.00010094,2]
[339403503,1727573145828,-150.0,0.00010094,2]
[339403504,1727573145864,-150.0,0.00010094,2]
[339403505,1727573145916,-150.0,0.00010094,2]
[339403506,1727573145957,-0.53869021,0.00010094,2]
[339403508,1727573155423,150.0,6.94e-05,2]
[339403509,1727573155445,150.0,6.94e-05,2]
[339403510,1727573155466,150.0,6.94e-05,2]
[339403511,1727573155487,150.0,6.94e-05,2]
[339403512,1727573155510,669.95413627,6.94e-05,2]
[339403527,1727573424598,537.54183935,0.00022,120]
[339403539,1727573431751,-1945.32,0.00010156,2]
[339403540,1727573431761,-192.2,0.00010194,2]
[339403541,1727573431771,-250.0,0.00010207,2]
[339403542,1727573431780,-1940.59,0.00010209,2]
[339403543,1727573431789,-1000.0,0.00010238,2]
[339403544,1727573431798,-300.0,0.00010297,2]
[339403545,1727573431807,-23900.0,0.00010298,2]
[339403546,1727573431816,-212.65,0.00010431,2]
[339403547,1727573431826,-11199.18,0.00010487,2]
[339403548,1727573431835,-727.0,0.00010566,2]
[339403549,1727573431844,-166.398,0.0001078,2]
[339403550,1727573431853,-341.364,0.0001078,2]
[339403551,1727573431863,-499.99,0.0001078,2]
[339403552,1727573431872,-150.99,0.00010781,2]
[339403553,1727573431881,-2263.71,0.00010781,2]
[339403554,1727573431891,-150.0,0.00010899,2]
[339403555,1727573431900,-687.79919523,0.000109,2]
[339403556,1727573431909,-255.6559776,0.000109,2]
[339403557,1727573431918,-214.13293722,0.000109,2]
[339403558,1727573431928,-455.24350943,0.000109,2]
[339403559,1727573431938,-794.50165144,0.000109,2]
[339403560,1727573431947,-696.42162203,0.000109,2]
[339403561,1727573431957,-176.27,0.00010959,2]
[339403562,1727573431966,-907.48,0.00010959,2]
[339403563,1727573431975,-150.0,0.00010959,2]
[339403564,1727573431985,-250.0,0.00010959,2]
[339403565,1727573431994,-2000.0,0.00010959,2]
[339403566,1727573432003,-473.09632875,0.00010973,2]
[339403567,1727573432013,-500.0,0.00010973,2]
[339403568,1727573432024,-500.0,0.00010973,2]
[339403569,1727573432033,-500.0,0.00010973,2]
[339403570,1727573432043,-500.0,0.00010999,2]
[339403571,1727573432052,-531.54161958,0.00010999,2]
[339403572,1727573432063,-538.85001797,0.00011,2]
[339403573,1727573432072,-45810.79115109,0.00011,2]
[339403574,1727573432085,-56141.28791607,0.00011,2]
[339403575,1727573432108,-5596.13719113,0.00011,2]
[339403576,1727573432119,-6379.77272277,0.00011,2]
[339403577,1727573432131,-402.31913625,0.00011,2]
[339403578,1727573432146,-5054.9058077,0.00011,2]
[339403579,1727573432163,-621.3358276,0.00011,2]
[339403580,1727573432175,-1026.39824093,0.00011,2]
[339403581,1727573432187,-9033.63542404,0.00011,2]
[339403582,1727573436175,172.56610704,0.00021,60]
[339403589,1727573437863,-818.775,0.00011,2]
[339403590,1727573438390,-822.41859502,0.00011,2]
[339403591,1727573438401,-644.68559983,0.00011,2]
[339403592,1727573438412,-1016.61,0.00011,2]
[339403593,1727573438424,-1715.6453042,0.00011,2]
[339403594,1727573438445,-478.31959918,0.00011,2]
[339403595,1727573438456,-987.45743925,0.00011,2]
[339403596,1727573438474,-9247.2174918,0.00011,2]
[339403597,1727573438487,-37145.9829598,0.00011,2]
[339403598,1727573438499,-3570.53017167,0.00011,2]
[339403605,1727573439807,-355.72425126,0.00011,2]
[339403606,1727573439820,-24912.89410395,0.00011,2]
[339403607,1727573439832,-1615.19115138,0.00011,2]
[339403608,1727573439844,-52314.45260923,0.00011,2]
[339403609,1727573439855,-334436.86553248,0.00011,2]
[339403610,1727573439864,-42190.08855369,0.00011,2]
[339403611,1727573439875,-4640.15953696,0.00011,2]
[339403612,1727573439938,-446923.86490173,0.00011,2]
[339403613,1727573439951,-540.15952284,0.00011,2]
[339403614,1727573439961,-356.19588052,0.00011,2]
[339403615,1727573439972,-2561.10542528,0.00011,2]
[339403616,1727573439983,-2414.47484465,0.00011,2]
[339403617,1727573439994,-3810.54013007,0.00011,2]
[339403618,1727573440005,-711.3485025,0.00011,2]
[339403619,1727573440017,-10219.87733277,0.00011,2]
[339403620,1727573440072,-2336.89922027,0.00011,2]
[339403621,1727573440083,-900.65786228,0.00011,2]
[339403622,1727573440096,-682.60523184,0.00011,2]
[339403623,1727573440107,-1034.355,0.00011,2]
[339403624,1727573440118,-1670.31929468,0.00011,2]
[339403625,1727573440128,-3895.58825898,0.00011,2]
[339403626,1727573440139,-2041.58999799,0.00011,2]
[339403631,1727573442792,-2558.2578458,0.00011,2]
[339403632,1727573442804,-242992.47263957,0.00011,2]
[339403633,1727573442815,-3265.01060924,0.00011,2]
[339403634,1727573442826,-595.85925978,0.00011,2]
[339403635,1727573442837,-340.68338463,0.00011,2]
[339403636,1727573442848,-15775.77915603,0.00011,2]
[339403637,1727573442859,-311.7686698,0.00011,2]
[339403638,1727573442870,-8739.00278943,0.00011,2]
[339403639,1727573442881,-891.74511685,0.00011,2]
[339403640,1727573442892,-373.5132,0.00011,2]
[339403641,1727573442903,-369.48386758,0.00011,2]
[339403642,1727573442914,-444.24779552,0.00011,2]
[339403643,1727573442925,-489.18296135,0.00011,2]
[339403644,1727573442936,-362.76485203,0.00011,2]
[339403645,1727573442951,-361.855006,0.00011,2]
[339403646,1727573442962,-674.79390853,0.00011,2]
[339403647,1727573442973,-344.24370648,0.00011,2]
[339403648,1727573442984,-1086.11533046,0.00011,2]
[339403649,1727573442996,-531.91398643,0.00011,2]
[339403650,1727573443007,-1668.02297108,0.00011,2]
[339403651,1727573443020,-993.12736041,0.00011,2]
[339403652,1727573443031,-12602.56263663,0.00011,2]
[339403653,1727573443043,-529.685291,0.00011,2]
[339403654,1727573443054,-773.9542217,0.00011,2]
[339403655,1727573443065,-684.93719709,0.00011,2]
[339403656,1727573443076,-1516.6,0.00011,2]
[339403657,1727573443087,-2467.1499995,0.00011,2]
[339403658,1727573443098,-7440.45079688,0.00011,2]
[339403659,1727573443110,-463.3999995,0.00011,2]
[339403660,1727573443121,-6679.72932,0.00011,2]
[339403661,1727573443132,-305.67881732,0.00011,2]
[339403662,1727573443144,-85419.82856533,0.00011,2]
[339403663,1727573443163,-484.67509997,0.00011,2]
[339403664,1727573443175,-484.56846424,0.00011,2]
[339403665,1727573443186,-574.40904998,0.00011,2]
[339403666,1727573443198,-7764.0017081,0.00011,2]
[339403667,1727573443210,-1068.93575573,0.00011,2]
[339403668,1727573443222,-455.24917089,0.00011,2]
[339403671,1727573443234,-1267.53629767,0.00011,2]
[339403672,1727573443245,-1000.0,0.00011,2]
[339403673,1727573443257,-2285.82171714,0.00011,2]
[339403674,1727573443268,-10992.66936184,0.00011,2]
[339403675,1727573443279,-1240.6631406,0.00011,2]
[339403676,1727573443290,-754.9399989,0.00011,2]
[339403681,1727573445682,-351297.2838038,0.00011,2]
[339403683,1727573445695,-776.71636707,0.00011,2]
[339403684,1727573445811,-2026.77504163,0.00011,2]
[339403685,1727573445823,-1326.68,0.00011,2]
[339403686,1727573445834,-2735.70533876,0.00011,2]
[339403687,1727573445845,-832.13,0.00011,2]
[339403688,1727573445856,-1994.31444655,0.00011,2]
[339403689,1727573445866,-250.23590566,0.00011,2]
[339403690,1727573445877,-891.62318764,0.00011,2]
[339403691,1727573445887,-17614.77864084,0.00011,2]
[339403692,1727573445898,-907.5,0.00011,2]
[339403693,1727573445909,-3614.48,0.00011,2]
[339403694,1727573445922,-555.0,0.00011,2]
[339403695,1727573445934,-1224.9376738,0.00011,2]
[339403696,1727573445944,-915.26137407,0.00011,2]
[339403697,1727573445958,-1189.02918722,0.00011,2]
[339403698,1727573445968,-1325.98466,0.00011,2]
[339403699,1727573445980,-266.30194501,0.00011,2]
[339403700,1727573445991,-1269.51983804,0.00011,2]
[339403701,1727573446007,-1546.58900404,0.00011,2]
[339403702,1727573446018,-360.08234564,0.00011,2]
[339403703,1727573446032,-357.75268912,0.00011,2]
[339403704,1727573446043,-4417.52516995,0.00011,2]
[339403705,1727573446054,-1529.47956354,0.00011,2]
[339403706,1727573446065,-2534.226,0.00011,2]
[339403708,1727573446075,-10401.00682633,0.00011,2]
[339403709,1727573446086,-508.07079341,0.00011,2]
[339403710,1727573446097,-653.83,0.00011,2]
[339403711,1727573446112,-48104.21832194,0.00011,2]
[339403712,1727573446122,-1417.56443875,0.00011,2]
[339403713,1727573446134,-2805.18541535,0.00011,2]
[339403714,1727573446146,-45892.71309498,0.00011,2]
[339403715,1727573446158,-8200.69049466,0.00011,2]
[339403716,1727573446169,-392.18531531,0.00011,2]
[339403717,1727573446180,-581.02513369,0.00011,2]
[339403718,1727573453474,155.17,0.00013918,30]
[339403719,1727573455256,150.0,9.56e-05,2]
[339403720,1727573455280,150.0,9.56e-05,2]
[339403721,1727573455304,150.0,9.56e-05,2]
[339403722,1727573455328,8.69,9.56e-05,2]
[339403727,1727573772645,506.0,0.00022,120]
[339403728,1727573921488,1000.0,0.00021,60]
[339403729,1727573936450,-195.71,0.00010016,2]
[339403730,1727573979820,150.0,8.219e-05,2]
[339403731,1727573979840,150.0,8.219e-05,2]
[339403732,1727573979861,135.75,8.219e-05,2]
[339403733,1727573989577,1039.0,0.00021,60]
[339403734,1727574008985,155.17,0.00013918,30]
[339403735,1727574020527,989.0,0.00021,60]
[339403736,1727574074826,150.0,9.998e-05,2]
[339403737,1727574074848,150.0,9.998e-05,2]
[339403738,1727574074869,106.32,9.998e-05,2]
[339403739,1727574076195,150.0,9.998e-05,2]
[339403740,1727574076216,150.0,9.998e-05,2]
[339403741,1727574076238,150.0,9.998e-05,2]
[339403742,1727574076261,1039.63,9.998e-05,2]
[339403743,1727574084627,989.23,0.00021,60]
[339403744,1727574146231,483.0,0.00022,120]
[339403745,1727574280833,150.0,0.00010013,2]
[339403746,1727574280854,22.09,0.00010013,2]
[339403747,1727574302465,150.0,9.888e-05,2]
[339403748,1727574302487,14.55433884,9.888e-05,2]
[339403749,1727574322357,150.0,9.953e-05,2]
[339403750,1727574322379,100.0,9.953e-05,2]
[339403753,1727574502997,460.0,0.00022,120]
[339403754,1727574542680,150.5,0.00013154,120]
[339403755,1727574543130,150.5,0.00013144,120]
[339403756,1727574543729,238.98,0.00013134,120]
[339403771,1727574611737,150.0,8.219e-05,2]
[339403772,1727574611759,150.0,8.219e-05,2]
[339403773,1727574611780,113.96,8.219e-05,2]
[339403774,1727574626946,150.0,9.975e-05,2]
[339403775,1727574626967,53.16,9.975e-05,2]
[339403779,1727574632039,-154.264869,0.00010131,2]
[339403780,1727574632049,-1000.0,0.00010207,2]
[339403781,1727574632058,-202.02445171,0.00010382,2]
[339403782,1727574632068,-413.96,0.00010475,2]
[339403783,1727574632078,-300.0,0.0001065,2]
[339403784,1727574632087,-150.0,0.00010712,2]
[339403785,1727574632097,-1500.0,0.00010737,2]
[339403786,1727574632106,-150.0,0.00010751,2]
[339403787,1727574632115,-389.36137985,0.00010768,2]
[339403788,1727574632127,-1110.63862015,0.00010768,2]
[339403789,1727574632136,-174.66120389,0.00010772,2]
[339403790,1727574632145,-451.45312896,0.00010788,2]
[339403791,1727574632156,-1048.54687104,0.00010788,2]
[339403792,1727574632165,-1513.9934136,0.00010806,2]
[339403793,1727574632175,-272.90148056,0.00010855,2]
[339403794,1727574632184,-150.0,0.00010891,2]
[339403795,1727574632193,-434.45013983,0.000109,2]
[339403796,1727574632203,-406.68850376,0.000109,2]
[339403797,1727574632212,-314.1583715,0.000109,2]
[339403798,1727574632222,-1540.46281392,0.000109,2]
[339403799,1727574632232,-2483.89981383,0.000109,2]
[339403800,1727574632242,-151.23142822,0.00010901,2]
[339403801,1727574632251,-1500.0,0.00010923,2]
[339403802,1727574632260,-799.0,0.00010933,2]
[339403803,1727574632270,-394.58883494,0.00010946,2]
[339403804,1727574632282,-906.34494258,0.00010946,2]
[339403805,1727574632293,-199.06622248,0.00010946,2]
[339403806,1727574632302,-168.24,0.00010959,2]
[339403807,1727574632312,-211.77,0.00010959,2]
[339403808,1727574632322,-250.0,0.00010959,2]
[339403821,1727574632506,-500.0,0.00010973,2]
[339403823,1727574632516,-500.0,0.00010973,2]
[339403825,1727574632526,-500.0,0.00010973,2]
[339403827,1727574632536,-150.0,0.00010991,2]
[339403828,1727574632545,-150.0,0.00010999,2]
[339403830,1727574632554,-2004.47262654,0.00010999,2]
[339403832,1727574632563,-431.94057494,0.00011,2]
[339403834,1727574632572,-2721.87727857,0.00011,2]
[339403836,1727574632583,-561.75930824,0.00011,2]
[339403839,1727574632601,-16079.02632499,0.00011,2]
[339403841,1727574632614,-1156.65591601,0.00011,2]
[339403843,1727574632625,-482.99531256,0.00011,2]
[339403845,1727574632635,-727.73898001,0.00011,2]
[339403847,1727574632647,-11024.2,0.00011,2]
[339403849,1727574632658,-23813.21714294,0.00011,2]
[339403851,1727574632669,-27926.46373199,0.00011,2]
[339403877,1727574638055,-1508.20205936,0.00011,2]
[339403878,1727574638068,-1031.66794064,0.00011,2]
[339403879,1727574638286,-5898.78054719,0.00011,2]
[339403880,1727574638297,-18639.8583427,0.00011,2]
[339403881,1727574638317,-758.11221771,0.00011,2]
[339403882,1727574638329,-1049.42709408,0.00011,2]
[339403883,1727574638340,-705.3146958,0.00011,2]
[339403884,1727574638351,-339.1733676,0.00011,2]
[339403885,1727574638363,-1952.74361478,0.00011,2]
[339403886,1727574638375,-899.99999997,0.00011,2]
[339403887,1727574638386,-3562.59424013,0.00011,2]
[339403888,1727574638397,-783.60560307,0.00011,2]
[339403889,1727574638409,-1321.93848983,0.00011,2]
[339403890,1727574638420,-3444.51359154,0.00011,2]
[339403891,1727574638432,-1200.0,0.00011,2]
[339403892,1727574638443,-435.5729712,0.00011,2]
[339403893,1727574638471,-7654.46792279,0.00011,2]
[339403894,1727574638492,-11670.03628062,0.00011,2]
[339403895,1727574638503,-1710.00000005,0.00011,2]
[339403896,1727574638514,-782.42871167,0.00011,2]
[339403897,1727574638526,-1203.88782761,0.00011,2]
[339403898,1727574638537,-617.9386914,0.00011,2]
[339403899,1727574638548,-8761.63231516,0.00011,2]
[339403900,1727574638559,-453.64385135,0.00011,2]
[339403901,1727574638570,-851.88368412,0.00011,2]
[339403902,1727574638581,-323358.95490279,0.00011,2]
[339403903,1727574638589,-1761978.36076145,0.00011,2]
[339403904,1727574638600,-804325.50476752,0.00011,2]
[339403905,1727574638611,-4161.02506735,0.00011,2]
[339403906,1727574640116,-1759.8369796,0.00011,2]
[339403907,1727574640127,-851.15923326,0.00011,2]
[339403908,1727574640139,-334265.85193283,0.00011,2]
[339403909,1727574640150,-706.86050022,0.00011,2]
[339403910,1727574640162,-3419.99457149,0.00011,2]
[339403911,1727574640173,-600.3733193,0.00011,2]
[339403912,1727574640184,-123503.86474464,0.00011,2]
[339403913,1727574640290,-703.47381515,0.000109,2]
[339403914,1727574640300,-370.11729927,0.00011,2]
[339403915,1727574640311,-1228.29235975,0.00011,2]
[339403916,1727574640323,-901.72352929,0.00011,2]
[339403917,1727574640334,-1214.79818361,0.00011,2]
[339403923,1727574643143,-5.84451338,0.00011,2]
[339403924,1727574643154,-1056.06830296,0.00011,2]
[339403925,1727574643165,-468.86071826,0.00011,2]
[339403926,1727574646146,-23969.22446757,0.00011,2]
[339403927,1727574646157,-13190.00000041,0.00011,2]
[339403928,1727574646293,-940.87063428,0.00011,2]
[339403929,1727574661186,-150.0,0.000109,2]
[339403930,1727574662608,-150.0,0.000109,2]
[339403931,1727574663343,-150.0,0.000109,2]
[339403932,1727574663908,-150.0,0.000109,2]
[339403933,1727574664500,-150.0,0.000109,2]
[339403934,1727574665140,-150.0,0.000109,2]
[339403935,1727574665743,-150.0,0.000109,2]
[339403936,1727574666403,-150.0,0.000109,2]
[339403937,1727574743726,155.17,0.00013918,30]
[339403938,1727574790668,501.882832,0.00022,120]
[339403939,1727574794656,501.287825,0.00022,120]
[339403940,1727574852156,437.0,0.00022,120]
[339403941,1727574874708,200.0,9.89e-05,2]
[339403942,1727574901353,150.0,9.89e-05,2]
[339403943,1727574901375,150.0,9.89e-05,2]
[339403944,1727574901397,65.9,9.89e-05,2]
[339403945,1727574902847,84.1,9.889e-05,2]
[339403946,1727574902867,150.0,9.889e-05,2]
[339403947,1727574902888,15.9,9.889e-05,2]
[339403948,1727574904717,-262.7794775,0.00010031,2]
[339403949,1727574906443,-150.0,0.00010031,2]
[339403950,1727574908020,-150.0,0.00010031,2]
[339403951,1727574909603,-150.0,0.00010031,2]
[339403952,1727574910956,-150.0,0.00010031,2]
[339403953,1727574912511,-150.0,0.00010031,2]
[339403954,1727574914323,-150.0,0.00010031,2]
[339403955,1727574916442,-150.0,0.00010031,2]
[339403956,1727574921547,-231.3870225,0.00010031,2]
[339403957,1727575158475,150.0,8.219e-05,2]
[339403958,1727575158498,150.0,8.219e-05,2]
[339403959,1727575158520,103.33,8.219e-05,2]
[339403960,1727575185294,467.97,0.00021,60]
[339403961,1727575195038,150.0,9.887e-05,2]
[339403962,1727575195058,150.0,9.887e-05,2]
[339403963,1727575195077,150.0,9.887e-05,2]
[339403964,1727575195097,150.0,9.887e-05,2]
[339403965,1727575195116,150.0,9.887e-05,2]
[339403966,1727575195136,150.0,9.887e-05,2]
[339403967,1727575195156,176.2935,9.887e-05,2]
[339403968,1727575195176,150.0,9.887e-05,2]
[339403969,1727575195195,150.0,9.887e-05,2]
[339403970,1727575195215,150.0,9.887e-05,2]
[339403971,1727575195236,803.5065,9.887e-05,2]
[339403972,1727575221739,437.0,0.00022,120]
[339403973,1727575238360,150.0,9.886e-05,2]
[339403974,1727575238380,150.0,9.886e-05,2]
[339403975,1727575238400,24.8,9.886e-05,2]
[339403976,1727575245912,168.1,9.887e-05,2]
[339403977,1727575488887,150.0,9.885e-05,2]
[339403978,1727575488907,100.0,9.885e-05,2]
[339403980,1727575523591,228.36,9.887e-05,2]